bitfinex-derivatives/quotes_ETHF0:USTF0_20241105
["timestamp","ask_amount","ask_price","bid_price","bid_amount"]
[1730791491689,3.24670659,2425.7,2425.6,0.96172763]
[1730791492095,5.73664758,2425.8,2425.6,0.96172763]
[1730791492289,5.73664758,2425.8,2425.5,0.4534]
[1730791492489,4.13590659,2425.8,2425.7,0.41247]
[1730791492700,3.24670659,2425.9,2425.8,0.41246]
[1730791492896,3.24670659,2425.9,2425.7,0.85546]
[1730791492897,3.65915659,2425.9,2425.7,0.85546]
[1730791493194,3.24670659,2425.9,2425.8,0.41246]
[1730791493398,3.65915659,2425.9,2425.7,0.85546]
[1730791493603,3.24670659,2425.9,2425.7,0.443]
[1730791493808,2.07347099,2426.0,2425.8,4.1224]
[1730791493809,3.24670659,2426.0,2425.8,4.1224]
[1730791494105,3.24670659,2426.0,2425.9,0.87694]
[1730791496298,4.84739758,2426.0,2425.9,0.4645]
[1730791497099,5.29239758,2426.0,2425.9,0.4645]
[1730791497499,3.69170659,2426.0,2425.9,0.87694]
[1730791497800,3.24670659,2426.1,2426.0,0.41242]
[1730791498004,3.24670659,2426.2,2426.0,0.41242]
[1730791498206,0.41241,2426.1,2426.0,0.85282]
[1730791498396,0.41241,2426.1,2426.0,0.4404]
[1730791498706,3.24670659,2426.2,2426.0,0.4404]
[1730791498898,3.24670659,2426.2,2426.1,0.41241]
[1730791499595,3.65909659,2426.2,2426.1,0.41241]
[1730791500197,3.24670659,2426.2,2426.1,0.41241]
[1730791500905,0.41241,2426.1,2426.0,0.85281]
[1730791501095,4.84736758,2426.2,2426.0,0.4404]
[1730791501294,4.43497758,2426.2,2426.1,0.41241]
[1730791501799,4.84736758,2426.2,2426.1,0.41241]
[1730791502203,4.43497758,2426.2,2426.1,0.41241]
[1730791502506,3.24670659,2426.2,2426.1,0.41241]
[1730791502726,4.12760659,2426.3,2426.2,0.41239]
[1730791503802,3.24670659,2426.3,2426.2,0.41239]
[1730791505508,3.24670659,2426.3,2426.2,0.63880764]
[1730791505711,3.24670659,2426.3,2426.2,0.41239]
[1730791506111,3.24670659,2426.3,2426.2,0.6388059]
[1730791506613,3.24670659,2426.3,2426.2,0.41239]
[1730791507511,3.24670659,2426.3,2426.2,0.63882305]
[1730791508315,3.24670659,2426.4,2426.2,0.22643305]
[1730791508515,4.14090659,2426.5,2426.3,0.68623305]
[1730791508709,4.14090659,2426.5,2426.3,0.4598]
[1730791508907,4.55325659,2426.5,2426.3,0.87217]
[1730791509215,4.14090659,2426.5,2426.3,0.87217]
[1730791509515,0.41235,2426.4,2426.3,0.87217]
[1730791509714,0.41235,2426.4,2426.3,1.09859077]
[1730791510814,5.74152758,2426.5,2426.3,1.09859077]
[1730791511111,0.41235,2426.4,2426.3,0.87217]
[1730791511317,0.41235,2426.4,2426.3,1.09859285]
[1730791511707,3.70660659,2426.5,2426.4,0.41235]
[1730791511905,3.78780567,2426.7,2426.4,4.34799783]
[1730791511906,3.69850659,2426.7,2426.4,4.34799783]
[1730791512103,0.897,2426.7,2426.6,0.41232]
[1730791512406,0.897,2426.7,2426.6,0.63871783]
[1730791513210,1.3093,2426.7,2426.5,0.41233]
[1730791513409,2.49757099,2426.7,2426.6,0.22631974]
[1730791513710,2.08527099,2426.7,2426.4,0.4262]
[1730791513913,2.08527099,2426.7,2426.6,0.41232]
[1730791514114,2.49757099,2426.7,2426.6,0.41232]
[1730791514307,2.49757099,2426.7,2426.4,0.4262]
[1730791514512,0.41232,2426.6,2426.5,0.63860506]
[1730791514718,0.41232,2426.6,2426.5,0.63860343]
[1730791515429,0.41232,2426.6,2426.0,3.2078]
[1730791515430,0.41241,2426.1,2426.0,3.2078]
[1730791515622,1.60068099,2426.1,2426.0,3.43406355]
[1730791515829,0.41245,2425.9,2425.7,1.34286]
[1730791516035,41.21245,2425.9,2425.8,0.63876468]
[1730791516338,0.41245,2425.9,2425.8,0.63876468]
[1730791516632,1.3254,2426.0,2425.9,0.41244]
[1730791516827,42.1254,2426.0,2425.9,0.41244]
[1730791517235,42.53782,2426.0,2425.9,0.41244]
[1730791517531,1.73782,2426.0,2425.9,0.41244]
[1730791517725,6.45450659,2426.2,2426.1,0.41241]
[1730791517726,3.2078,2426.2,2426.1,0.41241]
[1730791518528,3.2078,2426.2,2426.1,0.63869108]
[1730791518832,3.2078,2426.2,2426.1,0.41241]
[1730791518833,3.62019,2426.2,2426.1,0.41241]
[1730791519026,3.62019,2426.2,2426.0,0.41241]
[1730791519623,0.41239,2426.2,2426.0,0.41241]
[1730791519829,0.41239,2426.2,2426.1,0.4124]
[1730791520142,0.41241,2426.1,2426.0,0.41242]
[1730791520721,1.60067099,2426.2,2426.0,0.41242]
[1730791520923,0.41244,2425.9,2425.8,3.2078]
[1730791521136,41.98827099,2425.9,2425.3,2.85831362]
[1730791521443,0.41254,2425.3,2425.2,3.62036]
[1730791521636,1.18827099,2425.5,2425.4,0.41252]
[1730791521931,1.60078099,2425.5,2425.4,0.41252]
[1730791522231,1.60078099,2425.5,2425.3,0.41253]
[1730791522535,0.4382,2425.4,2425.3,0.41253]
[1730791522726,0.4382,2425.4,2425.3,1.56485475]
[1730791523236,0.4382,2425.4,2425.3,5.68805475]
[1730791523420,0.4382,2425.4,2425.3,1.56485475]
[1730791523623,0.4382,2425.4,2425.3,1.33863]
[1730791523934,0.4382,2425.4,2425.3,1.56480676]
[1730791524441,7.75276659,2425.8,2425.3,5.27547676]
[1730791524632,0.4382,2425.7,2425.6,0.41248]
[1730791524825,0.4382,2425.7,2425.3,0.9261]
[1730791524826,0.85068,2425.7,2425.5,0.4125]
[1730791525226,0.41249,2425.6,2425.4,0.41251]
[1730791525834,0.85068,2425.7,2425.5,0.4125]
[1730791526025,0.4382,2425.7,2425.3,0.9261]
[1730791526226,0.4382,2425.7,2425.6,0.41249]
[1730791526425,0.4365,2425.8,2425.7,0.41247]
[1730791526640,0.4625,2426.0,2425.9,0.41244]
[1730791526843,0.8948,2426.0,2425.9,0.41244]
[1730791527230,1.30722,2426.0,2425.8,0.41245]
[1730791527832,0.8948,2426.0,2425.9,0.41244]
[1730791528436,0.8948,2426.0,2425.7,0.923]
[1730791528935,0.8948,2426.0,2425.9,0.41244]
[1730791530828,0.41244,2425.9,2425.7,0.41246]
[1730791531037,0.41244,2425.9,2425.6,3.2078]
[1730791531235,0.41244,2425.9,2425.8,0.41246]
[1730791532039,4.1224,2425.9,2425.6,3.62029]
[1730791532245,0.41247,2425.7,2425.6,3.2078]
[1730791532736,0.41244,2425.9,2425.6,3.2078]
[1730791533137,3.47012416,2426.0,2425.6,3.2078]
[1730791533337,0.8948,2426.0,2425.6,3.2078]
[1730791533543,0.8948,2426.0,2425.9,0.41244]
[1730791533747,1.30722,2426.0,2425.9,0.41244]
[1730791533930,1.30722,2426.0,2425.6,3.2078]
[1730791533931,0.8948,2426.0,2425.6,3.2078]
[1730791534137,0.41247,2425.8,2425.6,3.62029]
[1730791534445,0.86967,2425.7,2425.6,3.2078]
[1730791535044,0.4572,2425.7,2425.6,3.2078]
[1730791535242,0.4572,2425.7,2425.3,0.9073]
[1730791535442,0.4572,2425.7,2425.3,0.41254]
[1730791535443,0.41253,2425.4,2425.3,0.41254]
[1730791535641,0.41253,2425.4,2425.2,3.62035]
[1730791535941,0.4572,2425.3,2425.2,3.62035]
[1730791536439,0.41252,2425.5,2425.3,0.41253]
[1730791536635,0.86972,2425.5,2425.4,0.41252]
[1730791536836,0.41253,2425.4,2425.3,0.41254]
[1730791537031,0.41253,2425.4,2425.2,3.62035]
[1730791537238,0.41253,2425.4,2425.3,0.41254]
[1730791537640,0.86972,2425.5,2425.3,0.41253]
[1730791538242,0.41252,2425.4,2425.3,0.41253]
[1730791538538,0.4572,2425.5,2425.2,3.2078]
[1730791538842,0.41254,2425.3,2425.2,3.2078]
[1730791539034,0.4572,2425.5,2424.8,3.2078]
[1730791539035,3.665,2425.5,2424.8,3.2078]
[1730791539237,3.665,2425.5,2424.7,0.41264]
[1730791539238,0.4126,2425.0,2424.7,0.41264]
[1730791539436,0.4422,2425.2,2424.8,0.22596675]
[1730791539636,0.4422,2425.2,2425.1,0.41258]
[1730791543847,0.4624,2425.4,2424.8,6.81467416]
[1730791544146,0.4624,2425.4,2425.3,0.41254]
[1730791544647,0.41257,2425.2,2425.0,0.41259]
[1730791544947,0.41255,2425.3,2424.8,3.2078]
[1730791545149,0.41255,2425.3,2425.1,0.41256]
[1730791545741,0.41255,2425.3,2425.2,0.41256]
[1730791546249,0.41257,2425.2,2425.0,0.41258]
[1730791546446,0.4624,2425.4,2424.9,0.4126]
[1730791546649,0.41259,2425.1,2424.9,0.4126]
[1730791546839,0.8566,2425.0,2424.9,0.4126]
[1730791547039,1.26919,2425.0,2424.9,0.4126]
[1730791547342,0.8566,2425.0,2424.9,0.4126]
[1730791553341,1.26919,2425.0,2424.9,0.4126]
[1730791553544,0.8566,2425.0,2424.9,0.4126]
[1730791556044,1.26919,2425.0,2424.9,0.4126]
[1730791556947,0.8566,2425.0,2424.9,0.4126]
[1730791558256,1.26919,2425.0,2424.9,0.4126]
[1730791558656,0.8566,2425.0,2424.7,3.2078]
[1730791558848,0.41261,2424.9,2424.7,0.41263]
[1730791559049,1.6015323,2424.8,2424.5,0.8721]
[1730791559360,1.6015323,2424.8,2424.7,0.41264]
[1730791559750,1.1889023,2424.8,2424.7,0.41264]
[1730791560352,0.41262,2424.9,2424.5,0.8721]
[1730791560557,0.41263,2424.8,2424.7,0.41263]
[1730791561454,0.41262,2424.9,2424.7,0.41263]
[1730791561857,0.41262,2424.9,2424.6,0.41266]
[1730791562053,0.41262,2424.9,2424.7,0.41264]
[1730791562854,1.1889023,2424.8,2424.4,3.2078]
[1730791563062,1.1889023,2424.6,2424.4,3.2078]
[1730791563272,1.6408023,2424.5,2424.0,3.62055]
[1730791563553,1.1889023,2424.2,2424.1,0.41275]
[1730791564166,1.6016323,2424.2,2424.1,0.41275]
[1730791564358,1.1889023,2424.2,2423.9,0.01902]
[1730791564659,1.6016623,2424.1,2423.9,0.4318]
[1730791564862,0.4291,2424.0,2423.9,0.4318]
[1730791566756,3.2078,2424.2,2424.1,0.41275]
[1730791567655,3.62053,2424.2,2424.0,0.453]
[1730791567863,3.62053,2424.2,2424.0,0.86575]
[1730791568063,3.2078,2424.2,2424.1,0.41275]
[1730791568465,0.4291,2424.3,2424.2,0.41273]
[1730791572158,0.4291,2424.3,2424.0,3.6608]
[1730791572360,0.41273,2424.2,2424.0,3.6608]
[1730791572576,0.41273,2424.2,2424.0,3.62055]
[1730791572864,0.87543,2424.2,2424.0,3.62055]
[1730791573866,0.87543,2424.2,2424.0,3.2078]
[1730791574070,0.87543,2424.2,2424.1,0.87085]
[1730791574265,0.87543,2424.2,2424.1,0.41275]
[1730791574467,0.87543,2424.2,2424.0,3.62055]
[1730791574771,0.4493,2424.1,2424.0,3.62055]
[1730791575064,0.86205,2424.1,2424.0,3.62055]
[1730791575767,0.86205,2424.1,2424.0,3.2078]
[1730791575975,4.5749,2424.1,2423.8,0.41279]
[1730791576169,4.5749,2424.1,2423.7,3.2078]
[1730791576170,0.41278,2424.0,2423.7,3.2078]
[1730791576465,0.4573,2423.9,2423.8,0.4128]
[1730791577067,0.4493,2424.1,2423.7,3.2078]
[1730791577275,0.9074,2424.1,2424.0,0.41276]
[1730791579470,0.41277,2424.0,2423.8,0.41279]
[1730791579771,0.41277,2424.0,2423.8,0.84649]
[1730791580371,0.41278,2423.9,2423.8,0.41279]
[1730791580560,5.033,2424.1,2423.7,3.2078]
[1730791580766,0.41283,2423.6,2423.5,0.41284]
[1730791580977,0.41287,2423.4,2423.3,0.4337]
[1730791581168,2.57690762,2423.7,2423.2,3.67466]
[1730791581169,3.00960762,2423.5,2423.2,0.02326]
[1730791581477,2.57690762,2423.3,2422.9,3.2078]
[1730791581663,0.41292,2423.1,2422.9,3.2078]
[1730791581972,0.4341,2423.2,2423.1,0.41292]
[1730791582273,0.4341,2423.2,2422.9,3.2078]
[1730791582481,0.847,2423.2,2423.0,0.41293]
[1730791582974,0.4341,2423.2,2423.1,0.41292]
[1730791583669,3.62069,2423.3,2423.1,0.4129]
[1730791583876,3.2078,2423.3,2423.2,0.4129]
[1730791584269,0.8822,2423.4,2423.3,0.41288]
[1730791584467,0.4341,2423.4,2423.3,0.41288]
[1730791584970,40.8,2423.5,2423.4,0.41287]
[1730791585477,4.1264,2423.5,2423.1,0.4317]
[1730791585670,1.3598,2423.6,2423.1,0.4317]
[1730791585671,1.3598,2423.6,2423.4,0.41285]
[1730791585886,1.3598,2423.6,2422.9,4.24016]
[1730791585887,7.3342,2423.6,2423.3,0.41288]
[1730791586076,0.096,2423.8,2423.2,3.6395]
[1730791586376,0.096,2424.1,2423.5,3.2078]
[1730791586570,0.096,2424.3,2423.6,0.4681]
[1730791586783,0.096,2424.3,2424.2,3.62053]
[1730791587078,3.3038,2424.8,2424.3,0.41271]
[1730791587275,0.41271,2424.4,2424.1,0.41274]
[1730791587580,0.466,2424.3,2424.1,0.41274]
[1730791587977,1.8565,2424.6,2424.4,0.41269]
[1730791588275,0.4648,2424.6,2424.4,0.41268]
[1730791588473,0.4648,2424.6,2424.5,0.41268]
[1730791588670,3.2078,2424.8,2424.0,1.03192]
[1730791588866,3.2078,2424.8,2424.6,0.41265]
[1730791589089,3.2078,2424.8,2423.8,0.542]
[1730791589090,5.78470762,2424.8,2423.8,0.542]
[1730791589378,3.2078,2424.5,2423.8,3.7498]
[1730791589581,3.2078,2424.5,2424.4,0.4127]
[1730791590181,3.2078,2424.5,2424.3,0.4127]
[1730791590680,3.2078,2424.5,2424.4,0.4127]
[1730791590874,3.2078,2424.5,2424.3,0.4127]
[1730791591069,1.396,2424.9,2424.2,0.9246]
[1730791591268,0.87862,2424.9,2424.7,0.41264]
[1730791591477,0.466,2424.9,2424.7,0.41263]
[1730791591779,6.24950762,2425.1,2424.8,0.41263]
[1730791591975,0.87739,2425.1,2424.9,0.41261]
[1730791592277,0.4648,2425.1,2424.7,3.2078]
[1730791592478,1.3563,2425.2,2425.0,0.41259]
[1730791592779,1.76887,2425.2,2424.8,0.4326]
[1730791592976,1.3563,2425.2,2425.0,0.41259]
[1730791593184,1.76886,2425.2,2425.0,0.41259]
[1730791593390,1.76886,2425.2,2424.9,0.4126]
[1730791593770,1.3563,2425.2,2424.8,0.4326]
[1730791593988,4.06793,2425.4,2425.1,0.41258]
[1730791595179,0.41256,2425.2,2424.9,0.8705]
[1730791595380,0.41256,2425.2,2424.7,3.2078]
[1730791595381,2.57690762,2425.1,2424.7,3.2078]
[1730791595582,0.41262,2424.9,2424.7,3.2078]
[1730791595780,0.4456,2425.0,2424.7,3.2078]
[1730791596086,0.41263,2424.8,2424.7,3.2078]
[1730791596479,4.53663,2424.8,2424.7,3.2078]
[1730791596682,4.124,2424.8,2424.7,3.2078]
[1730791597175,0.4699,2424.9,2424.7,3.2078]
[1730791597375,0.88252,2424.9,2424.7,3.2078]
[1730791597677,0.88251,2424.9,2424.7,3.2078]
[1730791597875,0.4699,2424.9,2424.7,3.2078]
[1730791598277,0.4456,2425.0,2424.8,0.41263]
[1730791598673,0.8582,2425.0,2424.7,3.62044]
[1730791599680,0.41261,2424.9,2424.7,3.2078]
[1730791600476,0.4456,2425.0,2424.7,3.2078]
[1730791600788,0.41261,2424.9,2424.7,3.2078]
[1730791601676,0.41263,2424.8,2424.7,3.2078]
[1730791601985,0.4456,2425.0,2424.7,3.62044]
[1730791601986,0.41262,2424.9,2424.7,3.62044]
[1730791602190,0.8582,2425.0,2424.7,3.62044]
[1730791602582,0.4456,2425.0,2424.8,0.41262]
[1730791603191,0.85819,2425.0,2424.7,3.2078]
[1730791603387,0.85819,2425.0,2424.7,3.62044]
[1730791603592,0.41262,2424.9,2424.7,3.62044]
[1730791603783,0.4456,2425.0,2424.7,3.62044]
[1730791603978,0.85821,2425.0,2424.7,3.62044]
[1730791604489,0.85821,2425.0,2424.8,0.41263]
[1730791605492,0.85821,2425.0,2424.7,3.62043]
[1730791605887,0.8582,2425.0,2424.8,0.41262]
[1730791606188,0.4456,2425.0,2424.8,0.41262]
[1730791606490,0.85819,2425.0,2424.8,0.41262]
[1730791606791,0.41259,2425.1,2424.8,0.41262]
[1730791606995,0.41257,2425.2,2424.7,3.2078]
[1730791607293,0.41257,2425.2,2424.8,0.8952]
[1730791607488,0.41257,2425.2,2425.0,0.41259]
[1730791607886,4.53577,2425.2,2424.9,0.4318]
[1730791608089,0.41257,2425.2,2425.0,0.41259]
[1730791608402,0.41257,2425.2,2424.9,0.4318]
[1730791608587,0.41257,2425.2,2425.0,0.41259]
[1730791609489,0.41255,2425.3,2425.1,0.41257]
[1730791609893,4.1052,2425.4,2425.0,0.41258]
[1730791610194,0.41256,2425.2,2425.0,0.41258]
[1730791610389,0.41255,2425.3,2425.1,0.41258]
[1730791610698,0.41254,2425.3,2425.1,0.41258]
[1730791611092,4.1052,2425.4,2425.1,0.41258]
[1730791611294,0.41255,2425.3,2425.1,0.41258]
[1730791611695,4.1052,2425.4,2424.9,0.4318]
[1730791611890,0.41255,2425.3,2425.1,0.41258]
[1730791613196,0.41256,2425.2,2425.0,0.41258]
[1730791614599,4.1052,2425.4,2424.9,0.4318]
[1730791614897,0.41257,2425.2,2425.0,0.41259]
[1730791615809,3.2078,2425.3,2424.9,0.4318]
[1730791616097,0.41257,2425.2,2425.1,0.41258]
[1730791616294,0.41255,2425.3,2425.1,0.41258]
[1730791616500,0.8974,2425.4,2425.1,0.41258]
[1730791616898,0.41255,2425.3,2425.1,0.41258]
[1730791617102,0.04055435,2425.2,2425.1,0.41258]
[1730791617496,0.04055435,2425.2,2425.1,4.53578]
[1730791617906,0.04481193,2425.2,2425.1,4.53578]
[1730791619511,0.04481193,2425.2,2425.1,0.41258]
[1730791619901,0.04481193,2425.2,2424.9,0.4318]
[1730791620305,0.89438193,2425.2,2425.0,0.41259]
[1730791620602,0.48181193,2425.2,2424.9,0.8444]
[1730791620900,0.04481193,2425.1,2424.9,0.8444]
[1730791621101,0.41259,2425.0,2424.9,0.8444]
[1730791621607,0.45739193,2425.1,2425.0,0.41259]
[1730791621807,0.04481193,2425.1,2425.0,0.41259]
[1730791623207,0.45739193,2425.1,2425.0,0.41259]
[1730791624206,0.04481193,2425.1,2424.8,0.4408]
[1730791624403,0.4126,2425.0,2424.8,0.4408]
[1730791624625,0.04481193,2425.1,2424.7,3.2078]
[1730791624903,0.90292193,2424.9,2424.8,0.41262]
[1730791625402,0.41263,2424.8,2424.7,3.62044]
[1730791625707,0.41263,2424.8,2424.7,3.2078]
[1730791626005,0.45744193,2424.8,2424.7,3.2078]
[1730791627506,0.90324193,2424.8,2424.7,3.2078]
[1730791628201,5.02724193,2424.8,2424.7,3.2078]
[1730791630914,0.90324193,2424.8,2424.7,3.2078]
[1730791631211,0.04481193,2424.8,2424.7,3.62044]
[1730791632845,0.04481193,2424.8,2424.7,7.74444]
[1730791633118,0.04481193,2424.8,2424.7,7.9706703]
[1730791633321,0.04481193,2424.8,2424.7,8.51911733]
[1730791633907,0.04481193,2424.8,2424.7,11.09602495]
[1730791635421,0.04481193,2424.8,2424.7,7.88822495]
[1730791635621,0.04481193,2424.8,2424.7,11.09626922]
[1730791637415,0.04481193,2424.8,2424.7,11.97443024]
[1730791638426,0.04481193,2424.8,2424.7,7.85043024]
[1730791640435,0.04481193,2424.8,2424.7,8.35936046]
[1730791640938,0.04481193,2424.8,2424.7,8.35949942]
[1730791641133,0.04481193,2424.8,2424.7,5.15169942]
[1730791641323,0.04481193,2424.8,2424.7,8.35949942]
[1730791642038,0.04481193,2424.8,2424.7,5.15169942]
[1730791642340,0.04481193,2424.8,2424.7,7.8505692]
[1730791642533,0.04481193,2424.8,2424.7,8.3595044]
[1730791643050,0.04481193,2424.8,2424.7,8.35951317]
[1730791643226,0.04481193,2424.8,2424.7,13.41401317]
[1730791644936,0.04481193,2424.8,2424.7,12.67884767]
[1730791645138,0.04481193,2424.8,2424.7,9.47104767]
[1730791645339,0.04481193,2424.8,2424.7,11.76080626]
[1730791645736,0.04481193,2424.8,2424.7,11.80072227]
[1730791645935,0.04481193,2424.8,2424.7,12.67892172]
[1730791646443,0.04481193,2424.8,2424.7,8.55492172]
[1730791647643,0.04481193,2424.8,2424.7,5.0475141]
[1730791647939,0.04481193,2424.8,2424.7,4.16931465]
[1730791648337,0.04481193,2424.8,2424.7,3.75667465]
[1730791648538,4.58144193,2424.8,2424.7,3.62044]
[1730791649145,5.01674193,2424.8,2424.7,3.2078]
[1730791649643,5.01674193,2424.8,2424.7,3.62044]
[1730791650045,5.01674193,2424.8,2424.7,3.2078]
[1730791650445,5.01674193,2424.8,2424.7,3.62044]
[1730791650643,4.60411193,2424.8,2424.7,3.62044]
[1730791650839,5.01674193,2424.8,2424.7,3.62044]
[1730791651040,5.01674193,2424.8,2424.7,3.2078]
[1730791651545,5.01674193,2424.8,2424.7,3.62044]
[1730791652142,5.01674193,2424.8,2424.7,0.41264]
[1730791652650,5.01674193,2424.8,2424.7,0.63912884]
[1730791653148,0.48011193,2424.8,2424.7,0.63912884]
[1730791653348,4.60411193,2424.8,2424.7,0.63912884]
[1730791655251,0.48011193,2424.8,2424.7,0.63912884]
[1730791656948,0.48011193,2424.8,2424.7,1.18803038]
[1730791657146,0.48011193,2424.8,2424.7,1.63153038]
[1730791657547,0.48011193,2424.8,2424.7,1.63148594]
[1730791658151,0.04481193,2424.8,2424.7,2.06558594]
[1730791659251,0.04481193,2424.8,2424.7,4.64249356]
[1730791659449,0.04481193,2424.8,2424.7,5.52070972]
[1730791659861,0.04481193,2424.8,2424.7,5.52070668]
[1730791660351,0.04481193,2424.8,2424.7,5.52071801]
[1730791660756,0.04481193,2424.8,2424.7,5.52070196]
[1730791661859,0.04481193,2424.8,2424.7,8.72850196]
[1730791662555,0.04481193,2424.8,2424.7,7.30139202]
[1730791662758,0.04481193,2424.8,2424.7,8.72851895]
[1730791663150,0.04481193,2424.8,2424.7,9.23749537]
[1730791664458,0.04481193,2424.8,2424.7,6.02969537]
[1730791664646,0.04481193,2424.8,2424.7,9.23749537]
[1730791666356,0.04481193,2424.8,2424.7,7.30146891]
[1730791666654,0.04481193,2424.8,2424.7,9.23823538]
[1730791666860,0.04481193,2424.8,2424.7,9.23823607]
[1730791667763,0.4269,2425.3,2425.2,0.41256]
[1730791667956,0.4269,2425.3,2425.2,4.39596352]
[1730791668362,0.83944,2425.3,2425.2,0.22652129]
[1730791668959,4.08615659,2425.3,2424.9,2.57690762]
[1730791669153,0.4269,2425.3,2425.2,0.41256]
[1730791669353,0.4269,2425.3,2425.2,0.63899789]
[1730791673158,0.4585,2425.4,2425.2,6.01114551]
[1730791673351,0.4585,2425.4,2425.3,0.63897789]
[1730791673554,0.4585,2425.4,2425.3,1.07487789]
[1730791673956,0.4585,2425.4,2425.3,0.84844]
[1730791674250,0.4585,2425.4,2425.3,1.07478636]
[1730791675268,3.68280659,2425.6,2425.5,0.41251]
[1730791675456,4.13140659,2425.6,2425.5,0.41251]
[1730791676359,0.8847,2425.6,2425.5,0.41251]
[1730791676559,4.13140659,2425.6,2425.5,0.41251]
[1730791677962,0.8847,2425.6,2425.5,0.41251]
[1730791678262,0.8847,2425.6,2425.5,1.60107535]
[1730791679866,0.8847,2425.6,2425.5,1.82736687]
[1730791681267,0.8847,2425.6,2425.5,1.60107535]
[1730791682265,5.0071,2425.6,2425.2,3.2078]
[1730791682477,4.1232,2425.5,2425.1,0.41257]
[1730791682778,4.1232,2425.5,2424.9,3.6204]
[1730791682779,0.41259,2425.0,2424.9,3.6204]
[1730791682981,2.21990535,2425.4,2424.7,1.18856535]
[1730791682982,4.39636535,2425.2,2424.7,1.18856535]
[1730791683263,4.39636535,2425.2,2424.6,3.2078]
[1730791683264,41.6794,2424.9,2424.8,0.638881]
[1730791683468,41.6794,2424.9,2424.8,0.41261]
[1730791684673,0.8794,2424.9,2424.8,0.41261]
[1730791685865,5.41602,2424.9,2424.7,0.41263]
[1730791686070,1.29202,2424.9,2424.8,0.41263]
[1730791686263,42.09202,2424.9,2424.8,0.41263]
[1730791686481,0.8794,2424.9,2424.8,0.41263]
[1730791687874,0.4513,2424.9,2424.8,0.63885105]
[1730791688173,0.4513,2424.9,2424.8,0.63883704]
[1730791688376,0.4513,2424.9,2424.8,0.41263]
[1730791690876,0.4513,2424.9,2424.8,0.63885361]
[1730791691376,0.4513,2424.9,2424.8,0.41263]
[1730791691571,0.4513,2424.9,2424.8,0.63886529]
[1730791692372,0.4513,2424.9,2424.8,0.41263]
[1730791695579,0.41265,2424.7,2424.6,0.41266]
[1730791695803,0.4513,2424.9,2424.4,3.2078]
[1730791695986,0.9361,2424.6,2424.5,0.41268]
[1730791698390,0.4693,2424.6,2424.5,0.41268]
[1730791698683,0.4513,2424.9,2424.8,0.41263]
[1730791699407,3.34270659,2425.2,2425.1,0.41258]
[1730791699408,0.096,2425.2,2425.1,0.41258]
[1730791699684,0.4404,2425.3,2425.2,0.41256]
[1730791699876,0.9075,2425.3,2425.2,0.41256]
[1730791701084,1.32005,2425.3,2425.1,3.62037]
[1730791701282,0.9075,2425.3,2425.1,3.62037]
[1730791701576,0.9075,2425.3,2424.9,0.4126]
[1730791701577,0.41258,2425.1,2424.9,0.4126]
[1730791701783,0.4457,2425.0,2424.9,0.4126]
[1730791703580,0.4457,2425.0,2424.8,3.2078]
[1730791703880,0.4457,2425.0,2424.8,3.62042]
[1730791703881,0.8981,2424.9,2424.8,3.62042]
[1730791704981,1.31071,2424.9,2424.8,3.62042]
[1730791705181,1.31071,2424.9,2424.8,3.2078]
[1730791706775,5.43471,2424.9,2424.8,3.2078]
[1730791707286,0.41263,2424.8,2424.7,0.41263]
[1730791707486,1.31072,2424.9,2424.7,0.41263]
[1730791707678,1.31072,2424.9,2424.8,0.41263]
[1730791708074,5.43472,2424.9,2424.8,0.41263]
[1730791708273,0.41263,2424.8,2424.7,0.41263]
[1730791710580,0.41264,2424.8,2424.6,1.60164543]
[1730791710788,0.8981,2424.9,2424.6,1.60164543]
[1730791711086,0.41264,2424.7,2424.6,1.60164543]
[1730791711288,0.41264,2424.8,2424.7,0.41264]
[1730791711984,0.8981,2424.9,2424.7,0.41264]
[1730791712183,0.41263,2424.8,2424.6,1.60165543]
[1730791712379,0.41264,2424.7,2424.6,1.60165543]
[1730791712680,0.8981,2424.9,2424.5,3.62048]
[1730791712681,0.41266,2424.6,2424.5,3.62048]
[1730791712875,0.84276,2424.6,2424.5,3.62048]
[1730791713084,4.96756,2424.6,2424.5,3.62048]
[1730791713478,4.5549,2424.6,2424.5,3.62048]
[1730791713786,0.84276,2424.6,2424.5,3.62048]
[1730791714485,4.96756,2424.6,2424.5,3.62048]
[1730791714788,4.96756,2424.6,2424.5,0.41268]
[1730791715781,4.5549,2424.6,2424.4,4.39680543]
[1730791715986,0.4672,2424.5,2424.4,4.80948543]
[1730791718688,0.87988,2424.5,2424.4,4.80948543]
[1730791718890,1.31308,2424.5,2424.4,3.62048]
[1730791719085,5.43788,2424.5,2424.4,3.6205]
[1730791719287,5.43788,2424.5,2424.4,3.2078]
[1730791719791,5.43788,2424.5,2424.4,3.6205]
[1730791721085,5.43788,2424.5,2424.4,0.4127]
[1730791721387,5.43788,2424.5,2424.4,3.6205]
[1730791721690,5.43788,2424.5,2424.4,3.2078]
[1730791722287,0.4127,2424.4,2424.3,0.4127]
[1730791722490,0.4127,2424.4,2424.3,3.6205]
[1730791722985,0.4127,2424.4,2424.3,0.4127]
[1730791723292,0.4127,2424.4,2424.3,3.6205]
[1730791723497,0.9004,2424.5,2424.3,3.2078]
[1730791723685,1.31309,2424.5,2424.4,0.4127]
[1730791723992,1.31309,2424.5,2424.4,3.6205]
[1730791724186,5.43789,2424.5,2424.4,3.6205]
[1730791724396,5.43789,2424.5,2424.4,3.2078]
[1730791724588,5.43789,2424.5,2424.4,3.6205]
[1730791725086,0.4672,2424.5,2424.4,4.80950543]
[1730791725289,4.592,2424.5,2423.9,3.2078]
[1730791725488,4.592,2424.5,2424.0,0.63896957]
[1730791725489,0.41276,2424.1,2424.0,0.63896957]
[1730791725697,5.89570543,2424.5,2424.0,0.22620957]
[1730791725897,0.41274,2424.2,2424.1,0.41274]
[1730791726297,4.1248,2424.2,2424.0,1.18900543]